bitfinex/quotes_SOLUSD_20250924
["timestamp","ask_amount","ask_price","bid_price","bid_amount"]
[1758679441820,133.18,216.78,216.74,35.9]
[1758679442029,133.18,216.78,216.75,0.69]
[1758679444005,133.18,216.78,216.74,35.9]
[1758679444200,137.79305588,216.78,216.74,35.9]
[1758679444407,0.71,216.77,216.74,35.9]
[1758679444607,0.71,216.76,216.73,35.9]
[1758679444809,0.71,216.75,216.73,35.9]
[1758679445204,26.0,216.75,216.69,4.61468852]
[1758679445426,135.31023045,216.74,216.67,0.69]
[1758679445635,135.31023045,216.74,216.67,28.6]
[1758679445808,26.0,216.71,216.67,28.6]
[1758679446009,26.71,216.71,216.67,28.6]
[1758679446205,26.0,216.71,216.67,28.6]
[1758679446406,26.0,216.71,216.68,0.69]
[1758679446621,26.0,216.71,216.69,0.69]
[1758679447124,26.71,216.71,216.68,35.9]
[1758679447926,26.0,216.71,216.68,35.9]
[1758679448711,26.0,216.71,216.69,0.69]
[1758679449037,26.0,216.71,216.69,35.9]
[1758679449335,26.0,216.71,216.69,36.59]
[1758679449734,133.89,216.74,216.69,41.20487893]
[1758679450030,159.89,216.74,216.69,41.20487893]
[1758679450238,159.18,216.74,216.69,40.51487893]
[1758679450437,0.71,216.73,216.69,41.20487893]
[1758679450809,163.79382522,216.74,216.69,41.20487893]
[1758679451007,164.50382522,216.74,216.69,41.20487893]
[1758679451832,0.71,216.73,216.69,36.59]
[1758679452014,0.71,216.73,216.69,35.9]
[1758679453539,5.32413387,216.73,216.67,5.30511841]
[1758679453737,5.32413387,216.73,216.69,35.9]
[1758679454141,163.79383226,216.74,216.69,36.6]
[1758679454739,133.88,216.73,216.69,36.6]
[1758679455536,138.49408114,216.73,216.69,36.6]
[1758679456027,133.18,216.79,216.7,0.7]
[1758679456339,0.7,216.78,216.7,14.5757198]
[1758679456638,27.42023045,216.76,216.71,35.9]
[1758679456939,0.7,216.75,216.71,35.9]
[1758679457140,0.7,216.74,216.71,35.9]
[1758679457925,0.7,216.74,216.72,3.42853829]
[1758679458241,30.61382301,216.74,216.73,3.42853829]
[1758679458941,1.42023045,216.76,216.71,35.9]
[1758679459144,0.7,216.75,216.72,3.42881315]
[1758679459322,1.42023045,216.77,216.73,3.42881315]
[1758679459518,4.6133973,216.76,216.74,3.4283317]
[1758679459718,26.0,216.75,216.71,36.6]
[1758679459913,26.7,216.75,216.71,36.6]
[1758679460572,30.6133973,216.76,216.71,36.6]
[1758679460738,31.3133973,216.76,216.71,36.6]
[1758679461054,30.6133973,216.76,216.71,36.6]
[1758679461226,30.6133973,216.76,216.71,35.9]
[1758679461634,31.3133973,216.76,216.71,36.58]
[1758679462047,0.7,216.75,216.71,36.58]
[1758679462744,4.61382301,216.74,216.71,36.58]
[1758679463057,4.61382301,216.74,216.71,36.56]
[1758679464126,4.61382301,216.74,216.72,0.68]
[1758679464836,4.61382301,216.74,216.71,35.88]
[1758679465037,4.61382301,216.74,216.71,36.56]
[1758679465646,133.18,216.75,216.71,35.88]
[1758679465849,133.18,216.75,216.72,0.68]
[1758679466267,0.7,216.74,216.67,14.55764543]
[1758679466558,0.7,216.74,216.68,36.56]
[1758679466771,0.7,216.74,216.68,0.68]
[1758679466936,0.7,216.74,216.69,35.88]
[1758679467137,0.7,216.73,216.69,35.88]
[1758679467536,151.44794099,216.75,216.69,0.68]
[1758679467936,151.44794099,216.75,216.69,36.56]
[1758679468333,139.91391562,216.75,216.69,36.56]
[1758679468552,137.79368517,216.75,216.7,0.68]
[1758679468749,137.79368517,216.75,216.71,0.68]
[1758679469537,133.18,216.75,216.72,0.68]
[1758679469937,133.18,216.75,216.7,4.61464226]
[1758679470270,133.18,216.75,216.71,0.68]
[1758679470638,133.18,216.75,216.72,0.68]
[1758679471461,133.18,216.75,216.72,5.29424235]
[1758679476563,133.18,216.75,216.73,0.68]
[1758679477267,133.18,216.75,216.7,16.15136132]
[1758679477476,133.18,216.75,216.74,0.68]
[1758679478273,133.18,216.75,216.72,0.68]
[1758679478445,133.18,216.75,216.72,36.56]
[1758679479652,137.79366822,216.75,216.69,4.61471535]
[1758679479852,0.7,216.74,216.7,35.88]
[1758679480073,137.79366822,216.75,216.7,36.56]
[1758679480281,138.49366822,216.75,216.7,36.56]
[1758679480458,138.49366822,216.75,216.71,0.68]
[1758679481982,0.7,216.74,216.68,0.68]
[1758679482157,0.7,216.74,216.69,35.88]
[1758679482357,0.7,216.73,216.69,35.88]
[1758679483358,26.0,216.7,216.65,14.55957158]
[1758679483568,0.7,216.69,216.65,14.55957158]
[1758679483781,0.7,216.69,216.65,0.68]
[1758679484883,0.7,216.69,216.65,36.56]
[1758679485473,26.0,216.7,216.65,40.49573884]
[1758679485685,26.0,216.7,216.66,0.68]
[1758679485879,26.0,216.7,216.67,0.68]
[1758679486086,30.6146775,216.7,216.67,0.68]
[1758679486382,30.6146775,216.7,216.65,41.17573884]
[1758679486584,30.6146775,216.7,216.66,0.68]
[1758679487470,0.7,216.69,216.63,5.29616581]
[1758679487783,0.7,216.69,216.64,35.88]
[1758679487961,30.6146775,216.7,216.65,0.68]
[1758679488161,31.3146775,216.7,216.64,35.88]
[1758679488381,31.3146775,216.7,216.66,0.68]
[1758679489785,0.7,216.69,216.65,35.88]
[1758679490085,0.7,216.69,216.65,36.56]
[1758679490272,133.18,216.68,216.65,36.56]
[1758679491282,133.18,216.68,216.66,0.71]
[1758679491583,133.18,216.68,216.65,40.49572869]
[1758679491584,133.18,216.68,216.65,35.88]
[1758679491782,133.18,216.68,216.65,0.71]
[1758679491971,133.18,216.68,216.65,36.59]
[1758679492687,133.18,216.68,216.66,0.71]
[1758679493179,133.18,216.68,216.65,35.88]
[1758679493390,133.18,216.68,216.65,36.59]
[1758679498397,133.18,216.68,216.66,35.88]
[1758679499100,133.18,216.68,216.65,5.32571276]
[1758679499392,133.18,216.68,216.66,35.88]
[1758679499806,133.18,216.68,216.66,36.59]
[1758679500105,133.18,216.68,216.67,36.59]
[1758679501596,133.18,216.68,216.67,35.88]
[1758679502099,133.18,216.68,216.67,36.59]
[1758679502281,133.18,216.68,216.67,35.88]
[1758679504084,133.18,216.68,216.65,0.74231]
[1758679504278,0.72,216.67,216.66,35.88]
[1758679504479,133.18,216.68,216.66,36.59]
[1758679505078,137.79515704,216.68,216.66,35.88]
[1758679505698,133.18,216.68,216.66,35.88]
[1758679506073,133.9,216.68,216.66,35.88]
[1758679506802,133.18,216.68,216.66,36.59]
[1758679507208,133.18,216.68,216.66,35.88]
[1758679507385,137.79514263,216.68,216.66,35.88]
[1758679507707,138.51514263,216.68,216.66,35.88]
[1758679508301,133.9,216.68,216.66,35.88]
[1758679510706,133.9,216.68,216.65,0.03231]
[1758679510707,26.0,216.66,216.65,0.03231]
[1758679510879,43.13815656,216.66,216.65,0.03231]
[1758679511074,43.85815656,216.66,216.65,0.03231]
[1758679512582,48.47368319,216.66,216.65,0.03231]
[1758679515103,26.0,216.58,216.57,0.2]
[1758679515282,28.21942206,216.58,216.57,0.2]
[1758679515793,133.18,216.6,216.57,0.88]
[1758679516304,133.18,216.6,216.58,0.68]
[1758679516504,133.18,216.6,216.59,0.68]
[1758679519682,133.18,216.6,216.57,0.88]
[1758679519883,133.18,216.6,216.58,0.68]
[1758679520218,133.18,216.6,216.59,0.68]
[1758679526514,133.18,216.6,216.57,0.2]
[1758679526725,138.46689809,216.6,216.57,0.2]
[1758679527302,0.67,216.59,216.57,0.2]
[1758679528214,0.67,216.58,216.57,0.2]
[1758679528607,2.88942206,216.58,216.57,0.2]
[1758679529613,26.0,216.58,216.57,0.2]
[1758679537019,133.18,216.62,216.57,0.89]
[1758679537327,4.61535451,216.67,216.57,5.5074447]
[1758679537530,26.0,216.65,216.58,0.69]
[1758679538100,2.09220167,216.68,216.58,0.69]
[1758679538300,4.61508181,216.69,216.58,2.11220167]
[1758679538598,26.0,216.67,216.59,0.69]
[1758679538993,4.61508181,216.69,216.59,0.69]
[1758679539231,26.0,216.67,216.6,30.04224359]
[1758679539403,26.0,216.67,216.61,0.69]
[1758679540024,0.67,216.73,216.62,1.42220167]
[1758679540211,0.67,216.73,216.63,0.69]
[1758679540522,26.0,216.72,216.64,35.86]
[1758679540733,26.0,216.72,216.65,0.69]
[1758679541109,0.67,216.73,216.66,4.61552663]
[1758679541425,26.67,216.72,216.66,5.30552663]
[1758679541600,0.67,216.71,216.66,5.30552663]
[1758679541803,26.0,216.72,216.66,5.30552663]
[1758679542009,0.67,216.71,216.66,5.30552663]
[1758679544618,0.67,216.71,216.67,0.69]
[1758679544814,26.67,216.71,216.67,0.69]
[1758679545522,26.0,216.71,216.67,0.69]
[1758679545910,26.67,216.71,216.67,0.69]
[1758679546728,31.2845424,216.71,216.63,13.88149827]
[1758679547027,135.27220167,216.7,216.61,36.55]
[1758679547329,26.0,216.67,216.59,36.55]
[1758679547530,0.67,216.66,216.59,0.69]
[1758679547737,0.67,216.66,216.6,13.8834255]
[1758679547908,0.67,216.66,216.59,0.69]
[1758679548102,0.67,216.66,216.58,40.4772315]
[1758679548103,0.67,216.65,216.58,35.86]
[1758679548417,0.67,216.64,216.57,36.75]
[1758679548815,0.67,216.64,216.57,0.2]
[1758679548816,0.67,216.63,216.57,0.2]
[1758679549023,26.0,216.61,216.57,0.2]
[1758679549225,26.67,216.61,216.57,0.2]
[1758679549735,26.67,216.61,216.57,0.89]
[1758679550722,26.0,216.61,216.57,0.89]
[1758679551036,31.30664224,216.61,216.57,0.89]
[1758679551808,31.30664224,216.61,216.57,0.2]
[1758679552130,0.69,216.6,216.57,0.2]
[1758679553534,133.18,216.6,216.57,0.2]
[1758679553832,133.87,216.6,216.57,0.2]
[1758679554834,133.18,216.6,216.57,0.9]
[1758679555040,133.18,216.6,216.58,0.7]
[1758679556021,133.18,216.6,216.57,4.81732056]
[1758679556226,133.18,216.6,216.57,5.51732056]
[1758679556443,133.18,216.6,216.57,4.81732056]
[1758679556823,133.18,216.6,216.57,0.9]
[1758679558024,133.18,216.6,216.57,0.2]
[1758679558435,133.87,216.6,216.57,0.2]
[1758679559731,133.18,216.6,216.58,0.7]
[1758679559931,133.18,216.6,216.57,0.2]
[1758679560325,137.79680663,216.6,216.57,0.2]
[1758679560526,0.69,216.59,216.57,0.2]
[1758679560847,0.69,216.58,216.57,0.2]
[1758679561722,2.11220167,216.58,216.57,0.2]
[1758679562052,15.70779568,216.58,216.57,0.2]
[1758679562436,20.32502718,216.58,216.57,0.2]
[1758679563344,56.18502718,216.58,216.57,0.2]
[1758679563929,13.59559401,216.57,216.56,0.2]
[1758679564449,18.90303871,216.57,216.56,0.2]
[1758679564747,54.76303871,216.57,216.56,0.2]
[1758679565938,54.76303871,216.57,216.56,1e-08]
[1758679566339,18.90303871,216.57,216.56,1e-08]
[1758679566541,54.76303871,216.57,216.56,1e-08]
[1758679567645,54.76303871,216.57,216.5,0.2]
[1758679567646,39.59559401,216.51,216.5,1e-08]
[1758679567948,39.59559401,216.48,216.47,1e-08]
[1758679568152,13.59559401,216.47,216.46,1e-08]
[1758679568449,14.28559401,216.47,216.46,1e-08]
[1758679568652,22.34948524,216.47,216.46,1e-08]
[1758679568859,39.59559401,216.45,216.44,1e-08]
[1758679569029,13.59559401,216.44,216.43,1e-08]
[1758679569237,17.73009324,216.44,216.43,1e-08]
[1758679570455,22.35031131,216.44,216.43,1e-08]
[1758679570653,58.35031131,216.44,216.43,1e-08]
[1758679571357,57.66031131,216.44,216.43,1e-08]
[1758679573236,54.21581208,216.44,216.43,1e-08]
[1758679573658,21.64234916,216.44,216.43,1e-08]
[1758679573957,54.21581208,216.44,216.43,1e-08]
[1758679574330,54.19581208,216.44,216.43,1e-08]
[1758679574543,57.62005496,216.44,216.43,1e-08]
[1758679574860,22.32005496,216.44,216.43,1e-08]
[1758679575070,60.15375193,216.44,216.43,1e-08]
[1758679575631,60.15375193,216.44,216.39,0.2]
[1758679575632,39.59559401,216.42,216.39,0.2]
[1758679575826,80.44203856,216.42,216.39,0.2]
[1758679576040,81.12203856,216.42,216.39,0.2]
[1758679576449,84.17248137,216.42,216.39,0.2]
[1758679578556,51.58850572,216.42,216.39,0.2]
[1758679578744,84.15248137,216.42,216.39,0.2]
[1758679579156,87.56728104,216.42,216.39,0.2]
[1758679579346,87.56668452,216.42,216.39,0.2]
[1758679580258,84.15248137,216.42,216.39,0.2]
[1758679580554,55.28031357,216.42,216.39,0.2]
[1758679580856,87.84779853,216.42,216.39,0.2]
[1758679581062,84.15248137,216.42,216.39,0.2]
[1758679582961,48.17248137,216.42,216.39,0.2]
[1758679583166,84.13248137,216.42,216.39,0.2]
[1758679583545,87.79048855,216.42,216.39,0.2]
[1758679584659,91.19949246,216.42,216.39,0.2]
[1758679585247,91.19970231,216.42,216.39,0.2]
[1758679586858,54.55970231,216.42,216.39,0.2]
[1758679587162,52.70566166,216.42,216.41,0.91]
[1758679587368,88.64566166,216.42,216.41,0.91]
[1758679587949,52.70566166,216.42,216.41,0.91]
[1758679588145,81.57844072,216.42,216.41,0.91]
[1758679588352,84.98993135,216.42,216.41,0.91]
[1758679588753,49.04993135,216.42,216.41,0.91]
[1758679589149,45.63844072,216.42,216.41,0.91]
[1758679589368,81.57844072,216.42,216.41,0.91]
[1758679590372,1.42220167,216.42,216.41,0.91]
[1758679590551,27.42220167,216.42,216.41,0.91]
[1758679590957,26.0,216.42,216.41,0.91]
[1758679591164,27.42220167,216.42,216.41,0.91]
[1758679592347,1.42220167,216.42,216.41,0.91]
[1758679593679,26.0,216.42,216.41,0.91]
[1758679594172,18.21538519,216.46,216.41,0.91]
[1758679594351,54.13538519,216.46,216.42,0.71]
[1758679594556,26.0,216.43,216.42,0.71]
[1758679597149,39.59559401,216.42,216.41,0.2]
[1758679597690,173.49559401,216.42,216.41,0.2]
[1758679597874,209.39559401,216.42,216.41,0.2]
[1758679598189,214.01623905,216.42,216.41,0.2]
[1758679598378,216.24133477,216.42,216.41,0.2]
[1758679599369,217.55122351,216.42,216.41,0.2]
[1758679601363,218.24122351,216.42,216.41,0.2]
[1758679601884,84.34122351,216.42,216.41,0.2]
[1758679604282,83.65122351,216.42,216.41,0.2]
[1758679605571,47.75122351,216.42,216.41,0.2]
[1758679605771,83.65122351,216.42,216.41,0.2]
[1758679606473,47.75122351,216.42,216.41,0.2]
[1758679606673,83.65122351,216.42,216.41,0.2]
[1758679607775,47.75122351,216.42,216.41,0.2]
[1758679607991,83.65122351,216.42,216.41,0.2]
[1758679612191,95.20283611,216.42,216.39,0.2]
[1758679612393,15.82068973,216.4,216.39,0.2]
[1758679612689,53.03057847,216.4,216.39,0.2]
[1758679613499,57.65165055,216.4,216.39,0.2]
[1758679616085,58.37165055,216.4,216.39,0.2]
[1758679620098,61.4890022,216.4,216.39,0.2]
[1758679620303,58.37165055,216.4,216.39,0.2]
[1758679620489,147.49559401,216.39,216.38,0.2]
[1758679620805,13.59559401,216.38,216.37,0.2]
[1758679620979,53.03057847,216.38,216.37,0.2]
[1758679621689,17.13057847,216.38,216.37,0.2]
[1758679622005,53.03057847,216.38,216.37,0.2]
[1758679622896,57.65207768,216.38,216.37,0.2]
[1758679624684,57.65207768,216.38,216.37,1e-08]
[1758679624685,61.48818231,216.38,216.37,1e-08]
[1758679625093,61.48818231,216.38,216.36,0.2]
[1758679625293,18.74158738,216.37,216.36,1e-08]
[1758679625491,18.74158738,216.37,216.35,1e-08]
[1758679625492,13.59559401,216.36,216.35,1e-08]
[1758679625802,53.03057847,216.36,216.35,1e-08]
[1758679626604,57.65250488,216.36,216.35,1e-08]
[1758679627504,59.50697532,216.36,216.35,1e-08]
[1758679628406,24.32697532,216.36,216.35,1e-08]
[1758679628603,60.24697532,216.36,216.34,1e-08]
[1758679628781,148.80548275,216.35,216.34,1e-08]
[1758679629181,18.73815627,216.35,216.34,1e-08]
[1758679629475,18.73799671,216.35,216.34,1e-08]
[1758679629901,20.59272511,216.35,216.34,1e-08]
[1758679630691,25.21486516,216.35,216.34,1e-08]
[1758679632498,24.49486516,216.35,216.34,1e-08]
[1758679632808,57.3023512,216.35,216.34,1e-08]
[1758679633883,58.0123512,216.35,216.34,1e-08]
[1758679634496,21.3823512,216.35,216.34,1e-08]
[1758679634692,57.3023512,216.35,216.34,1e-08]
[1758679635094,21.3823512,216.35,216.34,1e-08]
[1758679635295,57.3023512,216.35,216.34,1e-08]
[1758679635990,58.0123512,216.35,216.34,1e-08]
[1758679636189,22.0923512,216.35,216.34,1e-08]
[1758679636404,58.0123512,216.35,216.34,1e-08]
[1758679640913,39.59559401,216.32,216.31,1e-08]
[1758679641120,81.27567419,216.32,216.31,1e-08]
[1758679641301,81.97567419,216.32,216.31,1e-08]
[1758679641498,83.83074666,216.32,216.31,1e-08]
[1758679641994,86.93905316,216.32,216.31,1e-08]
[1758679643318,91.56183422,216.32,216.31,1e-08]
[1758679644231,39.59559401,216.22,216.21,0.2]
[1758679644516,77.74068973,216.22,216.21,0.2]
[1758679645308,82.36560879,216.22,216.21,0.2]
[1758679645716,46.44560879,216.22,216.21,0.2]
[1758679646022,82.36560879,216.22,216.21,0.2]
[1758679646201,82.36560879,216.22,216.21,0.89]
[1758679646709,85.99498628,216.22,216.21,0.89]
[1758679647620,85.99498628,216.22,216.21,0.2]
[1758679648240,87.23863776,216.22,216.21,0.2]
[1758679648425,50.07498628,216.22,216.21,0.2]
[1758679648603,44.22051307,216.22,216.21,0.89]
[1758679648803,80.14051307,216.22,216.21,0.89]
[1758679649895,39.59559401,216.22,216.21,0.89]
[1758679650219,80.14051307,216.22,216.21,0.89]
[1758679650407,44.22051307,216.22,216.21,0.89]
[1758679650606,80.14051307,216.22,216.21,0.89]
[1758679651016,4.6246728,216.24,216.21,0.89]
[1758679651330,26.0,216.22,216.21,0.2]
[1758679651713,26.0,216.22,216.21,0.89]
[1758679652406,75.51559401,216.25,216.21,0.89]
[1758679652607,75.51559401,216.25,216.22,0.69]
[1758679653203,39.59559401,216.25,216.22,0.69]
[1758679653425,133.9,216.24,216.22,0.69]
[1758679653632,159.9,216.24,216.22,0.69]
[1758679654502,159.9,216.24,216.22,5.31491759]
[1758679654930,159.9,216.24,216.23,0.69]
[1758679655745,26.0,216.24,216.23,0.69]
[1758679656713,6.04974664,216.3,216.23,5.31470517]
[1758679656918,26.0,216.26,216.24,0.69]
[1758679658524,26.0,216.26,216.24,5.31447856]
[1758679658718,26.0,216.26,216.25,0.69]
[1758679660631,26.0,216.26,216.25,5.31427745]
[1758679661237,26.0,216.26,216.25,0.69]
[1758679663322,13.59559401,216.31,216.25,5.31427745]
[1758679663517,26.0,216.28,216.26,0.69]
[1758679664632,26.0,216.28,216.26,5.31399998]
[1758679664817,26.0,216.28,216.27,0.69]
[1758679669944,26.0,216.28,216.27,5.31384981]
[1758679670822,133.9,216.31,216.27,5.31384981]
[1758679670823,159.9,216.31,216.27,5.31384981]
[1758679671147,26.0,216.29,216.28,0.69]
[1758679671449,133.9,216.31,216.29,0.69]
[1758679671627,133.9,216.31,216.3,0.69]
[1758679672021,133.9,216.31,216.3,5.3132085]
[1758679675244,133.9,216.31,216.3,0.69]
[1758679675458,133.9,216.31,216.28,4.62343984]
[1758679675766,0.68,216.3,216.27,4.62383054]
[1758679677659,26.0,216.28,216.23,13.67601299]
[1758679677848,0.68,216.27,216.23,12.98601299]
[1758679678035,0.68,216.26,216.23,12.98601299]
[1758679678559,0.68,216.26,216.21,0.89]
[1758679678734,0.68,216.26,216.22,5.31489647]
[1758679679368,0.68,216.26,216.22,4.62489647]
[1758679679660,31.30370833,216.28,216.23,0.69]
[1758679679853,0.68,216.27,216.23,0.69]
[1758679680055,0.68,216.26,216.21,0.2]
[1758679680231,26.68,216.26,216.22,0.69]
[1758679681468,26.68,216.26,216.21,0.2]
[1758679681469,30.62416882,216.26,216.21,4.8251061]
[1758679681761,0.68,216.25,216.21,0.2]
[1758679682135,30.62416882,216.26,216.22,0.69]
[1758679682332,26.0,216.26,216.23,0.69]
[1758679682537,133.9,216.29,216.21,4.8250532]
[1758679682736,159.9,216.29,216.23,13.18601299]
[1758679683170,159.9,216.29,216.23,13.87601299]
[1758679683171,133.9,216.28,216.23,13.87601299]
[1758679683547,134.58,216.28,216.24,4.6244913]
[1758679684178,0.68,216.27,216.21,0.2]
[1758679684354,0.68,216.27,216.22,18.50093205]
[1758679684554,0.68,216.26,216.22,13.87601299]
[1758679684757,0.68,216.25,216.22,13.87601299]
[1758679684959,0.68,216.24,216.22,13.87601299]
[1758679685548,139.9501577,216.28,216.22,13.87601299]
[1758679685749,0.68,216.27,216.21,4.82505219]
[1758679686056,0.68,216.27,216.21,5.51505219]
[1758679686456,26.0,216.23,216.21,0.2]
[1758679686837,26.68,216.23,216.21,0.2]
[1758679687052,26.0,216.23,216.21,0.2]
[1758679687361,0.68,216.22,216.21,0.2]
[1758679687746,5.30491906,216.22,216.21,0.2]
[1758679688273,26.0,216.23,216.21,0.2]
[1758679688965,0.68,216.22,216.21,0.2]
[1758679689558,5.30491906,216.22,216.21,0.2]
[1758679689955,18.90051307,216.22,216.21,0.2]
[1758679691682,0.68,216.22,216.21,0.2]
[1758679692474,26.68,216.22,216.21,0.2]
[1758679692680,26.0,216.22,216.21,0.2]
[1758679698280,31.31491906,216.22,216.21,0.2]
[1758679698678,30.62491906,216.22,216.21,0.2]
[1758679698880,31.31491906,216.22,216.21,0.2]
[1758679699856,26.69,216.22,216.21,0.2]
[1758679700274,31.31491906,216.22,216.21,0.2]
[1758679700475,26.69,216.22,216.21,0.2]
[1758679700677,26.0,216.22,216.21,0.2]
[1758679700862,5.34426388,216.26,216.21,0.91]
[1758679701059,26.0,216.23,216.21,0.2]
[1758679701266,26.0,216.23,216.21,0.91]
[1758679702256,26.0,216.22,216.21,0.91]
[1758679702456,26.0,216.22,216.21,0.2]
[1758679704084,26.72,216.25,216.21,0.2]
[1758679704276,0.72,216.24,216.21,0.2]
[1758679704681,26.0,216.23,216.21,0.2]
[1758679705586,26.0,216.25,216.22,0.71]
[1758679705767,1.42638845,216.3,216.22,0.71]
[1758679705962,0.72,216.28,216.22,0.71]
[1758679706169,0.72,216.3,216.22,0.71]
[1758679706383,26.0,216.29,216.22,5.53501845]
[1758679706683,0.72,216.3,216.23,0.71]
[1758679706865,26.0,216.28,216.24,4.6244913]
[1758679707057,0.72,216.3,216.25,0.71]
[1758679707262,26.0,216.29,216.26,0.71]
[1758679707462,26.0,216.29,216.27,0.71]
[1758679709186,26.0,216.29,216.27,5.33382572]
[1758679709490,0.72,216.32,216.28,0.71]
[1758679710286,26.72,216.31,216.27,4.62382572]
[1758679710487,0.72,216.3,216.25,5.33407543]
[1758679710969,0.72,216.3,216.25,4.62407543]
[1758679711171,26.0,216.31,216.26,0.71]
[1758679711380,26.0,216.31,216.25,4.62407543]
[1758679711381,26.72,216.31,216.27,0.71]
[1758679711579,26.72,216.31,216.27,5.33371736]
[1758679711764,26.0,216.32,216.28,0.71]
[1758679711968,26.0,216.31,216.28,0.71]
[1758679712274,0.72,216.32,216.28,0.71]
[1758679712474,26.0,216.32,216.29,0.71]
[1758679712681,26.0,216.32,216.27,4.62371736]
[1758679712882,0.72,216.31,216.27,4.62371736]
[1758679713391,0.72,216.31,216.27,5.33371736]
[1758679713592,26.0,216.32,216.28,0.71]
[1758679713793,26.72,216.32,216.28,0.71]
[1758679715392,26.0,216.32,216.29,0.71]
[1758679715895,26.72,216.32,216.28,4.62348543]
[1758679716082,26.72,216.32,216.28,5.33348543]
[1758679716480,0.72,216.31,216.28,4.62348543]
[1758679716876,26.0,216.32,216.28,4.62348543]
[1758679717076,26.0,216.32,216.28,5.33348543]
[1758679717277,26.72,216.32,216.28,5.33348543]
[1758679718392,26.0,216.32,216.27,4.62382653]
[1758679718595,26.0,216.32,216.28,0.71]
[1758679718896,26.72,216.32,216.28,0.71]
[1758679720601,26.72,216.32,216.28,5.33345518]
[1758679721207,26.0,216.32,216.28,5.33345518]
[1758679721500,0.72,216.31,216.28,4.62345518]
[1758679721893,0.72,216.31,216.27,4.62384981]
[1758679722092,26.0,216.32,216.28,0.71]
[1758679722287,0.72,216.31,216.26,12.2699834]
[1758679722493,0.72,216.3,216.25,4.62426934]
[1758679722695,0.72,216.29,216.25,4.62426934]
[1758679722987,0.72,216.28,216.25,4.62426934]
[1758679724782,26.0,216.32,216.24,4.62446762]
[1758679724783,0.72,216.27,216.24,4.62446762]
[1758679725410,0.72,216.29,216.24,5.33446762]
[1758679725591,0.72,216.29,216.24,4.62446762]
[1758679725802,0.72,216.29,216.25,0.71]
[1758679727103,0.72,216.29,216.25,5.33417777]
[1758679727303,0.72,216.28,216.25,4.62417777]
[1758679727601,0.72,216.27,216.23,16.18588614]
[1758679727903,0.72,216.26,216.21,0.91]
[1758679728099,0.72,216.26,216.22,0.71]
[1758679728805,0.72,216.26,216.22,5.3347243]
[1758679729211,4.62386737,216.27,216.22,5.3347243]
[1758679729500,0.72,216.26,216.21,0.2]
[1758679730605,26.0,216.24,216.21,0.2]
[1758679730901,0.69,216.23,216.21,0.2]
[1758679731102,0.69,216.22,216.21,0.2]
[1758679732085,33.54226473,216.22,216.21,0.2]
[1758679732294,47.13785874,216.22,216.21,0.2]
[1758679734296,84.85327539,216.22,216.21,0.2]
[1758679739484,82.62592972,216.22,216.21,0.2]